Cogmind - Beta 15 @@@ ROGUE MODE // 2025.07.13 @ 22:08:21 Player: jumpy Result: Self-destructed Performance ------------- Evolutions (2) 1000 Regions Visited (4) 800 Robots Destroyed (24) 120 Value Destroyed (685) 685 Prototype IDs (0) 0 Alien Tech Used (0) 0 Bonus (60) 60 TOTAL SCORE: 2665 Bonus ------- Follower Combat Kills 60 Cogmind --------- Core Integrity 304/550 Matter 24/300 Energy 275/275 System Corruption 0% Temperature Cool (0) Movement Core (400) Ox7 Location -8/Materials Parts ------- > --- POWER (1) -------- Deuterium Engine > --- PROPULSION (4) --- (None) > --- UTILITY (4) ------ Small Storage Unit Machine Analyzer Seismic Detector > --- WEAPON (2) ------- Subdweller Shrapnel Launcher > --- INVENTORY (8) ---- Compact Wheel Compact Wheel Improved Heat Sink Improved Terrain Scanner Seismic Detector Mining Laser Peak State ------------ > --- POWER ------------ Deuterium Engine > --- PROPULSION ------- Light Treads Light Treads Spiked Treads Advanced Treads > --- UTILITY ---------- Small Storage Unit Machine Analyzer Seismic Detector > --- WEAPON ----------- Grenade Launcher Subdweller Shrapnel Launcher > --- INVENTORY -------- Improved Ion Engine Compact Wheel Compact Wheel Improved Heat Sink Improved Terrain Scanner Seismic Detector Mining Laser [Rating: 19] Favorites ----------- Power Ion Engine Engine Ion Engine Propulsion Light Treads Treads Light Treads Utility Small Storage Unit Device Seismic Detector Storage Small Storage Unit Processor Machine Analyzer Weapon Small Laser Energy Gun Small Laser Launcher Subdweller Shrapnel Launcher Build | -11 -10 -10 -10 -8 ------- Run | Yrd Mat Min Sub Mat Slots Evolved 4 | . . . . 4 Power . | . . . . . Propulsion 2 | . . . . 2 Utility 2 | . . . . 2 Weapon . | . . . . . Parts Attached 17 | 8 . 1 1 7 Power 4 | 1 . 1 . 2 Engine 4 | 1 . 1 . 2 Core . | . . . . . Reactor . | . . . . . Propulsion 5 | 2 . . 1 2 Treads 5 | 2 . . 1 2 Leg . | . . . . . Wheel . | . . . . . Hover . | . . . . . Flight . | . . . . . Utility 3 | 2 . . . 1 Device 1 | 1 . . . . Storage 1 | 1 . . . . Processor 1 | . . . . 1 Hackware . | . . . . . Protection . | . . . . . Artifact . | . . . . . Weapon 5 | 3 . . . 2 Energy Gun 3 | 3 . . . . Energy Cannon . | . . . . . Ballistic Gun . | . . . . . Ballistic Cannon . | . . . . . Launcher 2 | . . . . 2 Special Weapon . | . . . . . Impact Weapon . | . . . . . Slashing Weapon . | . . . . . Piercing Weapon . | . . . . . Special Melee Weapon . | . . . . . Unidentified Prototypes . | . . . . . Parts Lost 8 | . . 1 . 7 Power 2 | . . 1 . 1 Propulsion 4 | . . . . 4 Utility . | . . . . . Weapon 2 | . . . . 2 Highest Loss Streak 3 | . . 1 . 3 To Critical Strikes 1 | . . . . 1 Average Backups 6 | 3 6 7 7 6 Power . | . 1 . . . Propulsion 1 | 1 2 2 2 2 Utility 2 | . 2 2 3 3 Weapon 1 | . 1 2 2 1 Tool/Special . | . . . . . Unused Backups 7 | 1 . . . 6 Power . | . . . . . Propulsion 2 | . . . . 2 Utility 3 | . . . . 3 Weapon 2 | 1 . . . 1 Tool/Special . | . . . . . Average Slot Usage (%) 92 | . 100 99 100 71 Engine 12 | . 14 13 14 8 Treads 27 | . 28 28 28 26 Device 12 | . 14 14 14 9 Storage 12 | . 14 14 14 9 Processor 1 | . . . . 3 Energy Gun 22 | . 28 28 28 6 Launcher 2 | . . . . 9 Peak Build Rating 19 | 7 7 8 9 19 Average Rating 9 | 6 7 7 8 13 On Entrance 6 | . 7 7 8 9 Naked Turns . | . . . . . Heaviest Build 26 | 13 13 13 13 26 Greatest Support 82 | 40 40 40 40 82 Greatest Overweight (x) 1 | . . . . 1 Average Overweight (x) . | . . . . . Largest Inventory Capacity 8 | 8 8 8 8 8 Average Capacity 7 | 7 8 8 8 8 Most Carried 8 | 6 7 8 8 8 Average Carried 6 | 3 6 7 7 6 Final Capacity 8 | 8 8 8 8 8 Final Carried 8 | 6 7 7 8 6 Class Distribution -------------------- 100% | Mutant Dominant Class ---------------- Mutant | -10/Materials Mutant | -10/Mines Mutant | -10/Subcaves Mutant | -8/Materials Resources | -11 -10 -10 -10 -8 ----------- Run | Yrd Mat Min Sub Mat Matter Collected 439 | 280 . 10 10 139 Remotely . | . . . . . Salvage Created 686 | 210 . 76 77 323 Parts 53 | 19 . 2 4 28 Haulers Intercepted . | . . . . . Recyclers Shooed . | . . . . . Parts Field Recycled . | . . . . . Retrieved Matter . | . . . . . Parts Self-Destructed 4 | . . . 4 . Prevented . | . . . . . Kills | -11 -10 -10 -10 -8 ------- Run | Yrd Mat Min Sub Mat Combat Hostiles Destroyed 12 | . . 2 2 8 Guns 6 | . . 2 2 2 AOE 6 | . . . . 6 Classes Destroyed 9 | 2 . 1 1 5 Worker 1 | . . . . 1 Builder 2 | . . . . 2 Tunneler 7 | 7 . . . . Recycler 1 | 1 . . . . Watcher 1 | . . . . 1 Grunt 7 | . . 2 . 5 Sentry 2 | . . . . 2 Hunter 1 | . . . . 1 Subdweller 2 | . . . 2 . Best Kill Streak 4 | 2 . 1 2 4 Combat Bots Only 2 | . . 1 2 2 Max Kills in Single Turn 2 | 1 . 1 1 2 Gunslinging . | . . . . . Exploded 1 | . . . . 1 Melee . | . . . . . Uniques/NPCs Destroyed . | . . . . . Combat | -11 -10 -10 -10 -8 -------- Run | Yrd Mat Min Sub Mat Hostile Shots Fired 111 | . . 39 10 62 Missed 30 | . . 10 5 15 Hits 81 | . . 29 5 47 Projectile 81 | . . 29 5 47 Critical Strikes 4 | . . 2 . 2 Damage Taken 1561 | . . 365 111 1085 Core 321 | . . 59 16 246 Absorbed by Shields . | . . . . . Core Remaining (%) 85 | 100 . . 70 . Volleys Fired 74 | 17 . 14 9 34 Largest 2 | 2 . 2 2 2 Hottest 80 | 80 . 80 80 80 Shots Fired 128 | 34 . 27 18 49 Gun 106 | 34 . 27 18 27 Cannon . | . . . . . Launcher 22 | . . . . 22 Special . | . . . . . Kinetic 16 | . . . . 16 Thermal 106 | 34 . 27 18 27 Explosive 6 | . . . . 6 Electromagnetic . | . . . . . Robot Hit Streak 9 | 9 . 7 5 8 Robot Miss Streak 3 | 3 . 2 1 3 Penetration Max . | . . . . . Secondary Targets . | . . . . . Shots Hit Robots 82 | 21 . 17 13 31 Core Hits 45 | 9 . 4 6 26 Critical Kills . | . . . . . Critical Parts Destroyed . | . . . . . Critical Strikes . | . . . . . Melee Attacks . | . . . . . Impact . | . . . . . Slashing . | . . . . . Piercing . | . . . . . Sneak Attacks . | . . . . . Combat Hostiles . | . . . . . Follow-up Attacks . | . . . . . Damage Inflicted 1789 | 228 . 201 145 1215 Guns 778 | 228 . 198 145 207 Cannons . | . . . . . Explosions 1008 | . . . . 1008 Melee . | . . . . . Ramming 3 | . . 3 . . Kinetic 827 | . . . . 827 Thermal 778 | 228 . 198 145 207 Explosive 181 | . . . . 181 Electromagnetic . | . . . . . Impact . | . . . . . Slashing . | . . . . . Piercing . | . . . . . Highest Corruption . | . . . . . Average Corruption . | . . . . . Corruption Purged . | . . . . . Corruption Blocked . | . . . . . Overload Shots . | . . . . . Overflow Damage 124 | . . . . 124 Projectiles . | . . . . . Explosions 124 | . . . . 124 Melee . | . . . . . Knockbacks . | . . . . . Impact . | . . . . . Kinetic . | . . . . . Secondary . | . . . . . Self-Inflicted Damage 369 | . . . . 369 Shots 11 | . . . . 11 Rammed 5 | . . 5 . . Targets Rammed 5 | . . 5 . . Kicked . | . . . . . Crushed . | . . . . . Highest Temperature 275 | 54 . 275 . 126 Average Temperature 88 | 21 . 173 . 67 Received Heat Transfer 642 | . . 237 18 387 Effects 5 | . . 5 . . Energy Bleed 2 | . . 2 . . Interference 3 | . . 3 . . Siege Activations . | . . . . . Martial Activations . | . . . . . Shielding Activations . | . . . . . Robots Disrupted . | . . . . . Combat Hostiles . | . . . . . Robots Corrupted . | . . . . . Combat Hostiles . | . . . . . Parts Fried . | . . . . . Impact Corruptions . | . . . . . Robots Melted . | . . . . . Combat Hostiles . | . . . . . Parts Melted 3 | 2 . . 1 . Heat Transferred 1775 | 525 . 450 325 475 Parts Sabotaged . | . . . . . Parts Stolen . | . . . . . Parts Stripped . | . . . . . Power Chain Reactions . | . . . . . Alert | -11 -10 -10 -10 -8 ------- Run | Yrd Mat Min Sub Mat Maximum Alert Level 1 | . . . . 1 Low Security (%) 97 | 100 100 100 . 91 Level 1 2 | . . . . 8 Level 2 . | . . . . . Level 3 . | . . . . . Level 4 . | . . . . . Level 5 . | . . . . . High Security . | . . . . . Max Security . | . . . . . Peak Influence 300 | 10 4 30 . 300 Initial . | . . . . . Average 26 | 1 . 4 . 75 Influence Increases 573 | 40 4 50 . 479 Destroy 0b10 Robot/C 200 | . . 40 . 160 Destroy 0b10 Robot/NC 60 | 40 . . . 20 Destroy Leader 52 | . . 10 . 42 Successful Hack 4 | . 4 . . . Disable Machine 75 | . . . . 75 Destroy Structure 167 | . . . . 167 Lose Combat Pursuer 15 | . . . . 15 Influence Decreases 284 | 40 4 50 . 190 Time Decay 214 | 40 4 40 . 130 Lost Part 70 | . . 10 . 60 Squads Dispatched 2 | . 1 . . 1 Investigation 1 | . . . . 1 Extermination . | . . . . . Reinforcement 1 | . 1 . . . Assault . | . . . . . Garrison . | . . . . . Intercept . | . . . . . Searches Triggered . | . . . . . Construction Impeded . | . . . . . Haulers Reinforced . | . . . . . Active Scanning Responses . | . . . . . Cargo Convoy Interrupts . | . . . . . Stealth | -11 -10 -10 -10 -8 --------- Run | Yrd Mat Min Sub Mat Distress Signals 3 | . . . . 3 Communications Jammed . | . . . . . Distress Signals . | . . . . . Times Spotted 25 | . 3 2 4 16 Peak Tracking Total 6 | . 3 2 2 6 Tactical Retreats 1 | . . . . 1 Traps | -11 -10 -10 -10 -8 ------- Run | Yrd Mat Min Sub Mat Traps Triggered 1 | . . . . 1 Indirectly . | . . . . . Trap Hack Attempts . | . . . . . Triggered . | . . . . . Disarmed . | . . . . . Reprogrammed . | . . . . . Reused . | . . . . . Traps Extracted . | . . . . . Installed . | . . . . . Triggered . | . . . . . Machines | -11 -10 -10 -10 -8 ---------- Run | Yrd Mat Min Sub Mat Machines Disabled 5 | . . . . 5 Max in Single Turn 2 | . . . . 2 Machines Repaired . | . . . . . Machines Dismantled . | . . . . . Machines Sabotaged . | . . . . . Overloaded Fab Kills . | . . . . . Hacking | -11 -10 -10 -10 -8 --------- Run | Yrd Mat Min Sub Mat Machines Accessed 3 | . 2 . 1 . Terminals 2 | . 2 . . . Fabricators . | . . . . . Repair Stations . | . . . . . Recycling Units . | . . . . . Scanalyzers . | . . . . . Garrison Access . | . . . . . Total Hacks 6 | . 5 . 1 . Successful 3 | . 2 . 1 . Failed 3 | . 3 . . . Catastrophic . | . . . . . Database Lockouts . | . . . . . Manual 5 | . 5 . . . Terminals 5 | . 5 . . . Fabricators . | . . . . . Repair Stations . | . . . . . Recycling Units . | . . . . . Scanalyzers . | . . . . . Garrison Access . | . . . . . Terminal Hacks 1 | . . . 1 . Record 1 | . . . 1 . Fabricator Hacks . | . . . . . Repair Station Hacks . | . . . . . Recycling Unit Hacks . | . . . . . Scanalyzer . | . . . . . Garrison Access Hacks . | . . . . . Unauthorized Hacks 2 | . 2 . . . Terminals 2 | . 2 . . . Botnet 2 | . 2 . . . Fabricators . | . . . . . Repair Stations . | . . . . . Recycling Units . | . . . . . Scanalyzers . | . . . . . Garrison Access . | . . . . . Data Cores Recovered . | . . . . . Used . | . . . . . Hacking Detections 1 | . 1 . . . Full Trace Events 1 | . 1 . . . Feedback Events . | . . . . . Feedback Blocked . | . . . . . Robot Schematics Acquired . | . . . . . Robots Built . | . . . . . Authchips . | . . . . . Time . | . . . . . Total Robot Build Rating . | . . . . . Part Schematics Acquired . | . . . . . Parts Built . | . . . . . Authchips . | . . . . . Time . | . . . . . Total Part Build Rating . | . . . . . Parts Repaired . | . . . . . Time . | . . . . . Parts Recycled . | . . . . . Recycled Matter . | . . . . . Retrieved Matter . | . . . . . Retrieved Components . | . . . . . Parts Scanalyzed . | . . . . . Part Schematics Acquired . | . . . . . Parts Damaged . | . . . . . Bothacking | -11 -10 -10 -10 -8 ------------ Run | Yrd Mat Min Sub Mat Used RIF Installer . | . . . . . Robots Hacked . | . . . . . Non-combat . | . . . . . Combat . | . . . . . Robot Hacks Applied . | . . . . . Relay Couplers Released . | . . . . . Fabnet Peak Effective % . | . . . . . Robots Rewired . | . . . . . Allies Hacked . | . . . . . Hacks Repelled . | . . . . . Allies | -11 -10 -10 -10 -8 -------- Run | Yrd Mat Min Sub Mat Total Allies 3 | . . 3 . . Largest Group 3 | . . 3 3 . Highest-Rated Group 40 | . . 40 40 . Highest-Rated Ally 16 | . . 16 16 . Total Orders . | . . . . . Ally Attacks 14 | . . . 14 . Total Damage 153 | . . . 153 . Kills 2 | . . . 2 . Allies Corrupted . | . . . . . Allies Melted . | . . . . . Intel | -11 -10 -10 -10 -8 ------- Run | Yrd Mat Min Sub Mat Active Infowar (turns) 1656 | 196 125 292 665 378 Seismic 1656 | 196 125 292 665 378 Machine Analysis 169 | . . . . 169 Robot Analysis Total . | . . . . . Derelict Logs Recovered 2 | . . 1 1 . Drone Launches . | . . . . . Drone Recoveries . | . . . . . Exploration | -11 -10 -10 -10 -8 ------------- Run | Yrd Mat Min Sub Mat Turns Passed 1799 | 322 125 309 665 378 Spaces Moved 950 | 160 78 161 377 174 Core 4 | 4 . . . . Treads 946 | 156 78 161 377 174 Legs . | . . . . . Wheels . | . . . . . Hover . | . . . . . Flight . | . . . . . Fastest Speed 50 | 50 160 160 160 152 Average Speed 158 | 157 160 160 160 156 Slowest Speed 240 | 160 160 160 160 240 Overloaded Moves . | . . . . . Propulsion Burnouts . | . . . . . Robots Hopped . | . . . . . Potential Cave-ins . | . . . . . Cave-ins Triggered . | . . . . . Exploration Rate (%) 26 | 10 30 34 31 28 Regions Visited 4 Branch Regions 2 Pre-discovered Areas . | . . . . . Known Exits Taken . | . . . . . Unknown Exits Taken 4 | 1 1 1 1 . Scrap Searched 2 | . . . 2 . Spaces Dug . | . . . . . Terrain Destroyed 181 | . . . . 181 Melee . | . . . . . Projectile . | . . . . . AOE 181 | . . . . 181 Terrain Rammed . | . . . . . Walls Destroyed . | . . . . . Machines Disabled . | . . . . . Actions | -11 -10 -10 -10 -8 --------- Run | Yrd Mat Min Sub Mat Total 1105 | 194 78 183 421 229 Wait 47 | . . 2 33 12 Move 946 | 159 77 160 376 174 Hop . | . . . . . Pick Up 11 | 8 1 1 1 . Fast Attach 11 | 7 . . . 4 Attach 4 | 1 . 1 . 2 Detach . | . . . . . Swap 2 | . . . 1 1 Drop 5 | 2 . . 1 2 Fire 74 | 17 . 14 9 34 Melee . | . . . . . Ram . | . . . . . Kick . | . . . . . Crush 5 | . . 5 . . Escape Stasis . | . . . . . Rewire . | . . . . . Trap . | . . . . . Miscellaneous . | . . . . . Route ------- -11/Scrapyard -10/Materials -10/Mines -10/Subcaves -8/Materials History --------- Turn | Location | Event 11 | -11/Scrapyard | Discovered new exit (range 16) 323 | -11/Scrapyard | Entered Materials 324 | -10/Materials | Build established: Mutant 432 | -10/Materials | Discovered new exit (range 11) 448 | -10/Materials | Entered Mines 562 | -10/Mines | Learned 4 Materials zone layouts 629 | -10/Mines | Assisted by bots powering up and referring to "LRC-V3" 739 | -10/Mines | Discovered new exit (range 11) 757 | -10/Mines | Entered Subcaves 757 | -10/Subcaves | Accompanied by 3 allies 947 | -10/Subcaves | Visited Clippyterm 997 | -10/Subcaves | A swath of the cavern ceiling suddenly collapsed 1130 | -10/Subcaves | Shifting Twisted Machinery released Sub. Shrapnel Launcher 1144 | -10/Subcaves | Shifting Twisted Machinery released Sub. Machine Gun 1331 | -10/Subcaves | Learned Materials garrison access intel 1407 | -10/Subcaves | Shifting Twisted Machinery released Sub. Monowheel 1411 | -10/Subcaves | Discovered new exit (range 5) 1422 | -10/Subcaves | Entered Materials 1422 | -8/Materials | Evolved 4 slots: Propulsion x2, Utility x2 1424 | -8/Materials | Loaded intel: 1 garrison access location 1800 | -8/Materials | Self-destructed Last Messages --------------- 01779_ K-01 Serf collects debris. 01782_ Material Processor disabled. 01782_ K-01 Serf collects debris. 01785_ Acquired 33 matter. 01786_ Acquired 71 matter. 01788_ Destroyed Aluminum Leg. 01788_ G-47 Trooper destroyed. 01789_ U-05 Engineer builds a Wall. 01789_ K-01 Serf collects debris. 01790_ K-01 Serf destroyed. 01792_ Destroyed Lgt. Nuclear Core. 01792_ Adv. Treads destroyed. 01792_ Destroyed Adv. Treads. 01793_ The unstable cave ceiling collapses. 01793_ U-05 Engineer builds a Wall. 01793_ W-25 Informer sends out distress signal. 01796_ Destroyed Imp. Heat Sink. 01797_ U-05 Engineer builds a Wall. 01798_ The unstable cave ceiling collapses. 01798_ Lgt. Treads destroyed. Map ----- +----------------------------------------------------+ | ##"#### / ??????????# #????# ############+ | | " ""###+##????????????# #????# #???# | | " #????????????# #????# #???# """ """ | | " #?????######## #????# #???# """ """ | | " #?????# ## #????# #???# """ """ | | " ! ###+##+#?????# """ ## #????# #???# """ """ | | "#% #" #?????# """ ## #???## ##??# """ """ | | ##[ ## #?????# """ ## ##### #??# | | ## ## #?????# """ # #??# | | #" ## // #?????# """ + T #??######### | | ## ## // #?????# # #??????????? | | #" ## #?????# ### #### #??????????? | | " ###############"" ##; ;;;;##+#####????????? | | " # [[ #"T ! # ; #????????? | | " # [[ #"" # ; #????????? | | # # [[ # # #????????? | | # # / #####; g #???###### | | ## #] g #???# | | # # = #???# """ | | !# #####+#####+## #???# """ | | # !%! / #???# """ | | # != + ;;#??????????????? | | #% ! # ;####???????????? | | + =%"##"";;; ##/## = #???????????? | | # * ! ! [ / g #???????????? | | # # = ## !@[ # #???????????? | | # ### +???????????? | | # #?## #???????????? | | #?# Y #???????????? | | #?## #####+###???????????? | | % #######??########???????????????????? | | = #?????????"""?????????????????????? | | #?????????"""?????????????????????? | | #?????????"""?????????????????????? | | #?????????????????????????????????? | | % " = #?????????????????????????????????? | | " " #?????????????????????????????????? | | # # #?????????????????????????????????? | | # # #?????????????????????????????????? | | # ###########?????????????????????????????????? | | # #?########??????????????????????????????????? | | ## #? ??????????????????????????????????? | | ?# # ?????????????""T""?????????????????? | | ?# # """ ""??????????????"""""?????????????????? | | ?# + """ ""????????????????????????????????????? | | ?# # """ ""????????????????????????????????????? | | # # ???????????????????????????????? | | # #############???????????????????????????????? | | # ??????????????????????????????? | | + ??????????????????????????????? | +----------------------------------------------------+ Best States ------------- Heat Dissipation 31 Energy Generation 14 Energy Capacity 275 Matter Stores 300 Matter Capacity 300 Sight Range 16 Terrain Scan Density 10 Evasion (%) 40 Recoil Reduction 4 Item Schematics ----------------- None Robot Schematics ------------------ None Fabricated ------------ Nothing Repaired ---------- Nothing Alien Tech Used ----------------- None Achievements -------------- None Challenges ------------ None Game ------ Seed DisposableDeuteriumFlakker Manual? 0 Play Time 00:10:45 Cumulative 154.6 hours Start 2025.07.13 @ 21:58:29 End 2025.07.13 @ 22:08:21 Sessions 1 Manual Loads 0 Difficulty Rogue Special Mode None Game No. 391 Rogue 391 Adventurer 0 Explorer 0 Win Type - Total 5 Types 4/0/1/0/0/0/0/0/0/0 Lore% 69 Gallery% 60 Achievement% 48 Wizard Run 0 Options --------- Layout 0 ASCII 0 Keyboard 0 Movement Numpad Keybinds 0 Fullscreen 2 Font 18/Terminus Map View 76x50 Zoom Use 0% Tactical HUD 1 Map Filters NONE Filters NONE Steam 1 RUN: c26d5f7e-d354-4cda-a9f8-304af8e22d8a